bitfinex-derivatives/quotes_SOLF0:USTF0_20240824
["timestamp","ask_amount","ask_price","bid_price","bid_amount"]
[1724490304211,3.2228,155.07,155.06,0.04943865]
[1724490304612,3.2228,155.07,155.06,1.33842997]
[1724490305022,11.1326,155.08,155.06,1.33842997]
[1724490305220,3.2226,155.08,155.07,1.28899132]
[1724490305632,3.2226,155.08,155.06,0.04943865]
[1724490306126,3.2226,155.08,155.07,1.28888418]
[1724490306618,11.1326,155.08,155.07,1.28888418]
[1724490306926,3.2228,155.07,155.06,0.04943865]
[1724490307222,7.91,155.08,155.06,1.33840575]
[1724490307413,7.91,155.08,155.07,1.2889671]
[1724490308223,11.1326,155.08,155.07,1.2889671]
[1724490308446,11.1326,155.08,155.06,0.04943865]
[1724490309119,11.1326,155.08,155.07,1.28887744]
[1724490309324,11.1326,155.08,155.06,0.04943865]
[1724490309520,11.1326,155.08,155.07,1.28887744]
[1724490309726,11.1326,155.08,155.06,0.04943865]
[1724490309920,3.2228,155.07,155.06,0.04943865]
[1724490310114,7.91,155.08,155.06,0.04943865]
[1724490312425,11.1326,155.08,155.06,0.04943865]
[1724490312819,7.91,155.08,155.06,0.04943865]
[1724490313232,0.04363881,155.09,155.06,0.04943865]
[1724490313233,3.2228,155.07,155.06,0.04943865]
[1724490313527,11.1328,155.07,155.06,0.04943865]
[1724490315828,0.04363881,155.09,155.06,0.04943865]
[1724490316027,7.95363881,155.09,155.07,1.28889996]
[1724490316219,7.95363881,155.09,155.06,0.04943865]
[1724490316423,7.95363881,155.09,155.07,1.28889949]
[1724490316626,7.95363881,155.09,155.06,0.04943865]
[1724490317031,7.95363881,155.09,155.07,1.28887881]
[1724490317233,7.95363881,155.09,155.06,0.04943865]
[1724490317525,11.17603881,155.09,155.07,1.28887697]
[1724490317720,11.17603881,155.09,155.06,0.04943865]
[1724490317922,7.95363881,155.09,155.07,1.28887682]
[1724490318121,0.04363881,155.09,155.06,3.27243865]
[1724490318320,0.04363881,155.09,155.07,1.28887578]
[1724490318527,0.04363881,155.09,155.08,3.2226]
[1724490318741,0.04363881,155.09,155.08,4.51132779]
[1724490319231,0.04363881,155.09,155.08,3.2226]
[1724490319625,0.04363881,155.09,155.08,4.51122515]
[1724490320421,3.2212,155.15,155.1,3.222]
[1724490320422,11.1312,155.15,155.1,3.222]
[1724490320634,11.1312,155.15,155.11,1.28862515]
[1724490320831,11.1312,155.15,155.1,3.222]
[1724490321029,14.3299093,155.15,155.1,3.222]
[1724490321227,14.3299093,155.15,155.11,1.28855757]
[1724490321431,14.37885906,155.15,155.11,0.04880922]
[1724490321624,6.46885906,155.15,155.11,0.04880922]
[1724490321926,6.46885906,155.15,155.11,3.27060922]
[1724490322133,0.04894976,155.15,155.11,0.04880922]
[1724490322325,0.04894976,155.15,155.12,1.28854306]
[1724490322530,0.04894976,155.15,155.12,3.2216]
[1724490322932,0.04894976,155.15,155.13,1.28841146]
[1724490323136,0.04894976,155.15,155.12,3.2216]
[1724490323324,0.04894976,155.15,155.13,1.28840957]
[1724490323529,0.04894976,155.15,155.12,3.2216]
[1724490323734,0.04894976,155.15,155.13,1.28840957]
[1724490323936,0.04894976,155.15,155.13,3.2215]
[1724490324139,0.04894976,155.15,155.13,11.1315]
[1724490325239,0.04894976,155.15,155.14,3.2213]
[1724490325937,0.04894976,155.15,155.14,12.4195659]
[1724490327039,66.89589127,155.2,155.14,9.1982659]
[1724490327233,66.89589127,155.2,155.17,7.91]
[1724490327933,0.04924443,155.2,155.18,3.2203]
[1724490328940,0.04924443,155.2,155.19,3.2203]
[1724490330646,0.04924443,155.2,155.19,11.1303]
[1724490330841,0.04924443,155.2,155.19,3.2203]
[1724490336643,0.04924443,155.2,155.18,3.2205]
[1724490336947,0.04924443,155.2,155.17,0.04394462]
[1724490337143,3.26954443,155.2,155.17,0.04394462]
[1724490337734,11.1304,155.19,155.17,0.04394462]
[1724490338943,11.1305,155.18,155.17,0.04394462]
[1724490340145,4.4891,155.19,155.17,0.04394462]
[1724490342847,3.2205,155.18,155.17,0.04394462]
[1724490343352,11.1305,155.18,155.17,0.04394462]
[1724490352555,3.2205,155.18,155.17,0.04394462]
[1724490352754,11.1305,155.18,155.17,0.04394462]
[1724490356152,39.55,155.18,155.17,0.04394462]
[1724490356370,39.55,155.18,155.1,2.6389]
[1724490356555,7.91,155.12,155.08,25.76]
[1724490357388,7.91,155.11,155.08,0.04183619]
[1724490358749,11.1321,155.11,155.08,0.04183619]
[1724490359152,7.91,155.11,155.08,0.04183619]
[1724490362559,7.91,155.11,155.08,3.26443619]
[1724490363358,7.91,155.11,155.08,0.04183619]
[1724490363957,7.91,155.11,155.08,3.26433619]
[1724490367664,0.04246399,155.12,155.08,0.04183619]
[1724490368055,0.04246399,155.12,155.09,3.2222]
[1724490368560,0.04246399,155.12,155.09,7.91]
[1724490368761,0.04246399,155.12,155.11,3.2219]
[1724490369554,0.04246399,155.12,155.1,3.2221]
[1724490371168,0.04246399,155.12,155.09,3.2223]
[1724490372569,0.04246399,155.12,155.08,7.95183619]
[1724490372769,0.04246399,155.12,155.09,1.28856384]
[1724490372963,0.04246399,155.12,155.08,7.95183619]
[1724490373164,0.04246399,155.12,155.09,1.28856368]
[1724490373359,0.04246399,155.12,155.08,7.95183619]
[1724490373669,0.04246399,155.12,155.1,3.222]
[1724490377162,0.04246399,155.12,155.09,3.2223]
[1724490379585,0.04246399,155.12,155.1,3.2221]
[1724490380476,0.04246399,155.12,155.11,3.2219]
[1724490381069,0.04246399,155.12,155.1,3.2221]
[1724490381473,0.04246399,155.12,155.09,3.2222]
[1724490381672,0.04246399,155.12,155.1,1.28856384]
[1724490381871,0.04246399,155.12,155.09,3.2222]
[1724490382074,0.04246399,155.12,155.1,1.28856384]
[1724490382265,0.04246399,155.12,155.09,3.2222]
[1724490382669,0.04246399,155.12,155.1,1.28857122]
[1724490382974,0.04246399,155.12,155.09,3.2222]
[1724490383177,0.04246399,155.12,155.1,1.28857106]
[1724490383368,0.04246399,155.12,155.09,3.2222]
[1724490383567,0.04246399,155.12,155.1,1.28857106]
[1724490383769,0.04246399,155.12,155.09,3.2222]
[1724490384069,0.04246399,155.12,155.1,1.28857106]
[1724490384264,0.04246399,155.12,155.09,3.2222]
[1724490384470,0.04246399,155.12,155.1,1.28857106]
[1724490384671,0.04246399,155.12,155.09,3.2222]
[1724490384970,0.04246399,155.12,155.1,1.28857106]
[1724490385370,0.04246399,155.12,155.09,3.2222]
[1724490385572,0.04246399,155.12,155.1,1.28856417]
[1724490385768,0.04246399,155.12,155.09,3.2222]
[1724490385967,0.04246399,155.12,155.1,1.28856417]
[1724490386173,0.04246399,155.12,155.09,3.2222]
[1724490386476,0.04246399,155.12,155.1,1.28857106]
[1724490386675,0.04246399,155.12,155.09,3.2222]
[1724490386871,0.04246399,155.12,155.1,1.28857106]
[1724490387070,0.04246399,155.12,155.09,3.2222]
[1724490387279,0.04246399,155.12,155.1,4.51067106]
[1724490387581,0.04246399,155.12,155.11,1.28855563]
[1724490390876,0.04246399,155.12,155.09,3.2223]
[1724490391180,0.04246399,155.12,155.1,1.28855722]
[1724490391379,0.04246399,155.12,155.11,1.28855722]
[1724490393689,0.04246399,155.12,155.09,3.2223]
[1724490393882,0.04246399,155.12,155.11,1.28855722]
[1724490394279,0.04246399,155.12,155.1,1.28856411]
[1724490394486,0.04246399,155.12,155.09,3.2223]
[1724490394778,0.04246399,155.12,155.1,1.28857134]
[1724490394982,0.04246399,155.12,155.09,3.2223]
[1724490395183,0.04246399,155.12,155.1,1.28856959]
[1724490395378,0.04246399,155.12,155.09,3.2223]
[1724490395584,0.04246399,155.12,155.1,1.2885688]
[1724490395782,0.04246399,155.12,155.09,3.2223]
[1724490396087,0.04246399,155.12,155.1,1.28857135]
[1724490396288,0.04246399,155.12,155.09,3.2223]
[1724490397484,0.04246399,155.12,155.08,61.88447465]
[1724490397485,0.04246399,155.12,155.08,65.10697465]
[1724490397882,0.04246399,155.12,155.09,1.28868016]
[1724490398082,0.04246399,155.12,155.08,65.10697465]
[1724490398293,0.04246399,155.12,155.09,4.43949163]
[1724490398483,0.04246399,155.12,155.08,65.10697465]
[1724490398693,0.04246399,155.12,155.09,4.43960412]
[1724490398884,0.04246399,155.12,155.08,65.10697465]
[1724490399093,0.04246399,155.12,155.09,4.43974006]
[1724490399293,0.04246399,155.12,155.09,1.28875564]
[1724490399499,0.04246399,155.12,155.08,65.10697465]
[1724490399792,0.04246399,155.12,155.09,4.43975511]
[1724490399989,3.26416399,155.12,155.08,65.10697465]
[1724490400190,11.17416399,155.12,155.08,65.10697465]
[1724490400390,11.17416399,155.12,155.09,3.15142409]
[1724490400794,11.17416399,155.12,155.08,65.10697465]
[1724490400991,11.17416399,155.12,155.09,3.15142468]
[1724490401191,11.17416399,155.12,155.08,65.10697465]
[1724490401396,11.17416399,155.12,155.09,4.44023719]
[1724490401601,11.17416399,155.12,155.08,65.10697465]
[1724490401802,11.17416399,155.12,155.09,4.44023713]
[1724490402001,11.17416399,155.12,155.08,61.88447465]
[1724490403004,11.17416399,155.12,155.09,3.15156726]
[1724490403197,11.17416399,155.12,155.08,61.88447465]
[1724490403897,11.17416399,155.12,155.09,4.44036691]
[1724490404098,11.17416399,155.12,155.08,65.10697465]
[1724490404295,11.17416399,155.12,155.09,4.43999667]
[1724490404496,7.95246399,155.12,155.08,65.10697465]
[1724490404700,7.95246399,155.12,155.09,4.43997745]
[1724490404903,7.95246399,155.12,155.08,65.10697465]
[1724490405099,7.95246399,155.12,155.09,4.43997744]
[1724490405294,7.95246399,155.12,155.08,65.10697465]
[1724490405496,7.95246399,155.12,155.09,4.43997527]
[1724490405801,7.95246399,155.12,155.08,65.10697465]
[1724490405802,7.95246399,155.12,155.1,4.43997527]
[1724490406004,7.95246399,155.12,155.08,65.10697465]
[1724490406303,7.95246399,155.12,155.09,6.37346009]
[1724490406495,7.95246399,155.12,155.1,3.15116009]
[1724490406802,7.95246399,155.12,155.09,3.2223]
[1724490407001,7.95246399,155.12,155.1,4.43974256]
[1724490407205,7.95246399,155.12,155.09,3.2223]
[1724490407399,7.95246399,155.12,155.1,3.15116487]
[1724490407597,7.95246399,155.12,155.08,65.10697465]
[1724490407797,11.17416399,155.12,155.09,4.43998057]
[1724490408007,11.17416399,155.12,155.1,4.43998057]
[1724490408308,11.17416399,155.12,155.08,65.10697465]
[1724490408610,11.17416399,155.12,155.09,4.44000777]
[1724490408811,11.17416399,155.12,155.08,65.10697465]
[1724490409009,11.17416399,155.12,155.09,4.44055188]
[1724490409305,11.17416399,155.12,155.1,3.15149471]
[1724490409510,11.17416399,155.12,155.08,65.10697465]
[1724490409710,11.17416399,155.12,155.09,4.44028254]
[1724490409908,11.17416399,155.12,155.08,65.10697465]
[1724490410111,11.17416399,155.12,155.09,4.44051972]
[1724490410311,11.17416399,155.12,155.1,4.44051972]
[1724490410509,11.17416399,155.12,155.08,65.10697465]
[1724490410812,11.17416399,155.12,155.09,4.44018134]
[1724490411017,11.17416399,155.12,155.1,4.44020203]
[1724490411318,11.17416399,155.12,155.08,65.10697465]
[1724490411510,11.17416399,155.12,155.09,3.15153417]
[1724490411707,11.17416399,155.12,155.1,3.15143728]
[1724490412006,11.17416399,155.12,155.08,65.10697465]
[1724490412316,11.17416399,155.12,155.09,4.44021525]
[1724490412514,11.17416399,155.12,155.1,4.44021525]
[1724490412716,11.17416399,155.12,155.08,65.10697465]
[1724490412916,11.17416399,155.12,155.09,4.44017764]
[1724490413115,11.17416399,155.12,155.1,4.44017764]
[1724490413310,11.17416399,155.12,155.08,65.10697465]
[1724490413511,11.17416399,155.12,155.09,4.44029786]
[1724490413815,11.17416399,155.12,155.1,4.44029786]
[1724490414002,11.17416399,155.12,155.08,65.10697465]
[1724490414206,11.17416399,155.12,155.09,4.44023247]
[1724490414407,11.17416399,155.12,155.1,4.44023247]
[1724490414629,11.17416399,155.12,155.08,65.10697465]
[1724490415210,11.17416399,155.12,155.09,4.44029793]
[1724490415515,11.17416399,155.12,155.1,3.15150725]
[1724490415815,11.17416399,155.12,155.09,1.28879068]
[1724490416012,11.17416399,155.12,155.1,4.44029793]
[1724490416314,11.17416399,155.12,155.08,65.10697465]
[1724490416516,11.17416399,155.12,155.09,4.44029668]
[1724490416717,11.17416399,155.12,155.1,4.44029668]
[1724490416917,11.17416399,155.12,155.08,65.10697465]
[1724490417307,11.17416399,155.12,155.09,4.44029793]
[1724490417512,11.17416399,155.12,155.1,4.44029793]
[1724490417814,11.17416399,155.12,155.08,65.10697465]
[1724490418015,11.17416399,155.12,155.09,4.44005985]
[1724490418213,11.17416399,155.12,155.1,4.44005985]
[1724490418409,11.17416399,155.12,155.08,65.10697465]
[1724490418607,11.17416399,155.12,155.09,3.15124534]
[1724490418809,11.17416399,155.12,155.1,4.44000154]
[1724490419023,11.17416399,155.12,155.11,3.15124534]
[1724490419514,11.17416399,155.12,155.09,3.15124534]
[1724490419718,11.17416399,155.12,155.1,4.44000844]
[1724490419920,11.17416399,155.12,155.11,3.15124534]
[1724490420121,11.17416399,155.12,155.09,3.15124534]
[1724490420323,11.17416399,155.12,155.1,4.44000844]
[1724490420622,11.17416399,155.12,155.11,3.15124534]
[1724490420821,11.17416399,155.12,155.09,3.15124534]
[1724490421020,11.17416399,155.12,155.1,3.15124534]
[1724490421212,11.17416399,155.12,155.1,1.28876323]
[1724490421419,11.17416399,155.12,155.11,4.44006557]
[1724490422218,11.17416399,155.12,155.11,1.28876323]
[1724490422443,11.17416399,155.12,155.09,3.15127335]
[1724490422625,11.17416399,155.12,155.11,4.44003658]
[1724490425522,11.17416399,155.12,155.11,1.28876323]
[1724490425717,11.17416399,155.12,155.11,4.44007759]
[1724490428221,11.17416399,155.12,155.08,3.26433619]
[1724490428416,11.17416399,155.12,155.09,4.43965969]
[1724490428619,11.17416399,155.12,155.1,4.43965969]
[1724490428917,11.17416399,155.12,155.11,4.43965969]
[1724490429626,0.04246399,155.12,155.11,4.43965969]
[1724490430124,0.04246399,155.12,155.11,7.66165969]
[1724490430938,0.04246399,155.12,155.11,3.222]
[1724490431128,0.04246399,155.12,155.11,7.66017455]
[1724490431428,0.04246399,155.12,155.11,3.222]
[1724490431832,0.04246399,155.12,155.11,7.66013131]
[1724490432935,0.04246399,155.12,155.1,3.2221]
[1724490433120,0.04246399,155.12,155.11,4.43800476]
[1724490433930,0.04246399,155.12,155.11,4.43827868]
[1724490435224,0.04246399,155.12,155.11,3.1495379]
[1724490435430,0.04246399,155.12,155.11,4.43828646]
[1724490436932,0.04246399,155.12,155.11,4.43794833]
[1724490439635,0.04246399,155.12,155.11,3.14912214]
[1724490439832,0.04246399,155.12,155.11,4.43786393]
[1724490440058,0.04246399,155.12,155.11,1.28874167]
[1724490440434,0.04246399,155.12,155.11,4.43787999]
[1724490441642,0.04246399,155.12,155.11,1.28874167]
[1724490441938,0.04246399,155.12,155.11,4.43793108]
[1724490442330,0.04246399,155.12,155.11,4.43815543]
[1724490443534,0.04246399,155.12,155.11,1.28875597]
[1724490443732,0.04246399,155.12,155.11,4.4381538]
[1724490444934,7.95246399,155.12,155.08,0.04183619]
[1724490445139,7.95246399,155.12,155.09,4.4396824]
[1724490445334,7.95246399,155.12,155.1,3.15072904]
[1724490445636,11.17426399,155.12,155.08,3.26443619]
[1724490445826,11.17426399,155.12,155.09,3.15113505]
[1724490446131,11.17426399,155.12,155.1,3.15113505]
[1724490446333,7.95246399,155.12,155.08,3.26443619]
[1724490446534,7.95246399,155.12,155.09,4.4398942]
[1724490446729,7.95246399,155.12,155.08,3.26443619]
[1724490447035,7.95246399,155.12,155.09,4.43990465]
[1724490447236,7.95246399,155.12,155.1,3.15094503]
[1724490447435,7.95246399,155.12,155.08,3.26443619]
[1724490447734,7.95246399,155.12,155.09,4.43997676]
[1724490447930,7.95246399,155.12,155.1,3.15101031]
[1724490448246,7.95246399,155.12,155.08,3.26443619]
[1724490448432,7.95246399,155.12,155.09,4.43989477]
[1724490448646,7.95246399,155.12,155.1,3.15093515]
[1724490448838,7.95246399,155.12,155.08,3.26443619]
[1724490449038,7.95246399,155.12,155.1,3.15093974]
[1724490449039,11.17436399,155.12,155.1,3.15093974]
[1724490449332,11.17436399,155.12,155.09,1.28895962]
[1724490449333,7.95246399,155.12,155.08,0.04183619]
[1724490449538,7.95246399,155.12,155.09,4.44015616]
[1724490449738,7.95246399,155.12,155.08,0.04183619]
[1724490449938,7.95246399,155.12,155.09,4.44000038]
[1724490450140,7.95246399,155.12,155.08,0.04183619]
[1724490450341,11.17436399,155.12,155.09,4.44015256]
[1724490450634,11.17436399,155.12,155.08,3.26443619]
[1724490450936,11.17436399,155.12,155.09,4.43991587]
[1724490451135,11.17436399,155.12,155.08,3.26443619]
[1724490451337,11.17436399,155.12,155.09,4.44013487]
[1724490451639,11.17436399,155.12,155.08,3.26443619]
[1724490451840,11.17436399,155.12,155.09,4.44015404]
[1724490452140,11.17436399,155.12,155.08,3.26443619]
[1724490452340,11.17436399,155.12,155.09,4.44017221]
[1724490452542,11.17436399,155.12,155.08,3.26443619]
[1724490452843,11.17436399,155.12,155.09,4.4401982]
[1724490453037,7.91,155.1,155.08,3.26443619]
[1724490453245,7.91,155.1,155.09,4.44026822]
[1724490453750,7.91,155.1,155.09,3.15128053]
[1724490453936,7.91,155.1,155.09,4.44026822]
[1724490454536,7.91,155.1,155.08,0.04183619]
[1724490454739,7.91,155.09,155.08,0.04183619]
[1724490455337,11.1324,155.09,155.08,0.04183619]
[1724490461445,3.2224,155.1,155.08,0.04183619]
[1724490461645,7.91,155.09,155.08,0.04183619]
[1724490462245,11.1324,155.09,155.08,0.04183619]
[1724490474159,3.2234,155.05,155.0,7.91]
[1724490474358,3.2234,155.05,155.01,7.66752675]
[1724490474558,3.2234,155.05,155.02,4.44362675]
[1724490474858,11.1335,155.04,155.03,4.44362675]
[1724490475082,7.91,155.04,155.02,0.04854042]
[1724490475455,3.2237,155.03,155.02,0.04854042]
[1724490475660,3.2237,155.03,155.02,3.20367901]
[1724490475865,3.2237,155.03,155.02,0.04854042]
[1724490477367,11.1337,155.03,155.02,0.04854042]
[1724490477564,7.91,155.03,154.94,25.76]
[1724490477763,7.91,155.0,154.95,4.44699833]
[1724490477960,7.91,155.0,154.96,4.44699833]
[1724490478161,7.91,155.0,154.97,4.44699833]
[1724490478365,7.91,155.0,154.94,33.67]
[1724490478666,0.04234192,154.99,154.95,4.49279346]
[1724490478888,0.04234192,154.99,154.95,3.27039422]
[1724490479064,0.04234192,154.99,154.96,1.28976132]
[1724490479263,0.04234192,154.99,154.96,3.15786401]
[1724490479463,0.04234192,154.99,154.97,3.15786401]
[1724490479771,0.04234192,154.99,154.95,3.27039422]
[1724490480062,0.04234192,154.99,154.96,4.44759811]
[1724490480260,0.04234192,154.99,154.97,3.15783679]
[1724490480463,0.04234192,154.99,154.95,3.27039422]
[1724490480664,0.04234192,154.99,154.96,4.44759264]
[1724490480864,0.04234192,154.99,154.97,3.15783116]
[1724490481084,0.04234192,154.99,154.96,3.2251]
[1724490481363,0.04234192,154.99,154.97,3.15785659]
[1724490481575,0.04234192,154.99,154.96,3.2251]
[1724490482069,0.04234192,154.99,154.95,3.27049422]
[1724490482368,0.04234192,154.99,154.96,4.44761791]
[1724490482564,0.04234192,154.99,154.96,7.91]
[1724490483974,0.04234192,154.99,154.95,1.40449422]
[1724490484165,0.04234192,154.99,154.96,12.35743634]
[1724490484467,1.3116,155.08,154.96,7.91]
[1724490484660,7.91,155.04,154.98,7.91]
[1724490484862,7.91,155.04,154.98,9.2056]
[1724490485264,3.2239,155.02,154.98,12.4303]
[1724490485663,3.26700277,155.02,154.98,12.47317345]
[1724490485859,0.04310277,155.02,154.99,3.2244]
[1724490486058,0.04310277,155.02,154.99,11.1344]
[1724490488260,0.04310277,155.02,155.0,3.2243]
[1724490490662,0.04310277,155.02,154.99,11.1344]
[1724490494369,0.04310277,155.02,154.99,3.2244]
[1724490494774,0.04310277,155.02,154.98,12.47307345]
[1724490495172,0.04310277,155.02,154.99,3.2245]
[1724490495773,0.04310277,155.02,154.98,12.47307345]
[1724490496071,0.04310277,155.02,154.98,3.26747345]
[1724490496363,0.04310277,155.02,154.98,0.04287345]
[1724490496760,7.91,155.01,154.98,0.04287345]
[1724490497272,11.1343,155.01,154.98,0.04287345]
[1724490500164,3.2243,155.01,154.98,0.04287345]
[1724490500362,11.17700277,155.02,154.98,3.26757345]
[1724490501164,11.17700277,155.02,154.98,0.04287345]
[1724490504180,0.04310277,155.02,154.98,7.95287345]
[1724490504379,0.04310277,155.02,155.01,7.91]
[1724490504973,0.04310277,155.02,155.01,11.1341]
[1724490505179,0.04310277,155.02,155.01,14.28698361]
[1724490505379,0.04310277,155.02,155.01,15.57629398]
[1724490505781,0.04310277,155.02,155.01,15.5762921]
[1724490506581,0.04310277,155.02,155.01,11.1341]
[1724490506881,0.04310277,155.02,155.01,15.57593271]
[1724490507075,0.04310277,155.02,155.01,11.1341]
[1724490507281,0.04310277,155.02,155.01,15.57602475]
[1724490509584,0.04310277,155.02,155.01,11.1341]
[1724490509881,0.04310277,155.02,155.01,15.57553705]
[1724490511983,0.04310277,155.02,155.01,7.66553705]
[1724490512202,0.04310277,155.02,155.01,4.5133409]
[1724490512388,0.04310277,155.02,155.01,7.66632148]
[1724490513879,0.04310277,155.02,155.01,4.5133409]
[1724490514078,0.04310277,155.02,155.01,7.66584559]
[1724490514283,0.04310277,155.02,155.01,4.5133409]
[1724490514484,0.04310277,155.02,155.01,7.66585547]
[1724490515182,0.04310277,155.02,155.01,4.5133892]
[1724490515521,0.04310277,155.02,155.01,14.28665737]
[1724490515678,0.04310277,155.02,155.01,14.28665571]
[1724490515881,0.04310277,155.02,155.01,15.57594491]
[1724490518082,0.04310277,155.02,155.01,11.1341]
[1724490518285,0.04310277,155.02,155.01,14.28662839]
[1724490518591,0.04310277,155.02,155.01,15.57591775]
[1724490520991,0.04310277,155.02,155.01,11.1341]
[1724490521186,0.04310277,155.02,155.01,15.57663431]
[1724490523990,0.04310277,155.02,155.01,15.57668235]
[1724490524401,0.04310277,155.02,155.01,11.1341]
[1724490524594,0.04310277,155.02,155.01,15.57761091]
[1724490526799,0.04310277,155.02,155.01,14.28826619]
[1724490526997,0.04310277,155.02,155.01,15.57761749]
[1724490528595,1.3345,155.11,155.05,3.2231]
[1724490528796,7.91,155.1,155.05,3.2231]
[1724490529801,0.04930721,155.09,155.06,0.04443563]
[1724490530303,3.27170721,155.09,155.06,0.04443563]
[1724490530699,0.04930721,155.09,155.06,0.04443563]
[1724490531099,0.04930721,155.09,155.06,3.26743563]
[1724490533905,3.27170721,155.09,155.06,3.26743563]
[1724490534101,3.27170721,155.09,155.06,0.04443563]
[1724490534307,7.91,155.08,155.06,0.04443563]
[1724490536624,11.1326,155.08,155.06,0.04443563]
[1724490540304,3.2228,155.07,155.06,0.04443563]
[1724490540511,11.1328,155.07,155.06,0.04443563]
[1724490541209,3.223,155.06,155.03,3.2236]
[1724490541404,3.223,155.06,154.96,2.566]
[1724490541708,3.223,155.06,155.02,3.2237]
[1724490542009,3.223,155.06,155.03,3.15435411]
[1724490542306,3.26917157,155.06,155.03,0.04564602]
[1724490543719,3.2232,155.05,155.03,0.04564602]
[1724490543911,0.04617157,155.06,155.03,0.04564602]
[1724490545410,3.26927157,155.06,155.03,0.04564602]
[1724490546509,7.91,155.05,155.03,0.04564602]
[1724490547309,0.04617157,155.06,155.03,0.04564602]
[1724490548011,0.04617157,155.06,155.03,3.26914602]
[1724490548210,0.04617157,155.06,155.04,3.15355336]
[1724490548408,0.04617157,155.06,155.04,7.91]
[1724490548804,0.04617157,155.06,155.05,3.2232]
[1724490549008,0.04617157,155.06,155.05,7.66533324]
[1724490549722,0.04617157,155.06,155.05,4.5124644]
[1724490549910,0.04617157,155.06,155.05,7.66471819]
[1724490550138,0.04617157,155.06,155.05,6.37545379]
[1724490550315,0.04617157,155.06,155.05,3.2232]
[1724490550513,0.04617157,155.06,155.05,6.37567279]
[1724490550917,0.04617157,155.06,155.05,3.15247279]
[1724490551425,0.04617157,155.06,155.05,4.44173254]
[1724490551633,0.04617157,155.06,155.05,3.15247279]
[1724490551819,7.95617157,155.06,155.05,3.15247279]
[1724490552010,7.95617157,155.06,155.03,0.04564602]
[1724490552420,11.17917157,155.06,155.03,0.04564602]
[1724490552618,0.04617157,155.06,155.03,0.04564602]
[1724490552918,7.91,155.05,155.03,0.04564602]
[1724490553112,0.04617157,155.06,155.03,0.04564602]
[1724490553313,0.04617157,155.06,155.03,7.95564602]
[1724490553518,0.04617157,155.06,155.04,4.4422611]
[1724490553718,0.04617157,155.06,155.03,7.95564602]
[1724490553918,0.04617157,155.06,155.04,4.44226194]
[1724490554220,0.04617157,155.06,155.05,4.44194273]
[1724490555519,0.04617157,155.06,155.03,11.17924602]
[1724490555719,0.04617157,155.06,155.05,4.44189732]
[1724490555919,0.04617157,155.06,155.03,11.17924602]
[1724490556115,0.04617157,155.06,155.04,4.4421919]
[1724490556327,0.04617157,155.06,155.03,11.17924602]
[1724490556624,0.04617157,155.06,155.04,4.44219189]
[1724490556818,0.04617157,155.06,155.05,3.15290961]
[1724490558117,0.04617157,155.06,155.03,0.04564602]
[1724490558320,7.95617157,155.06,155.03,0.04564602]
[1724490559317,0.04617157,155.06,155.03,0.04564602]
[1724490559513,11.17917157,155.06,155.03,0.04564602]
[1724490559717,7.91,155.05,155.03,0.04564602]
[1724490560318,11.1333,155.05,155.03,0.04564602]
[1724490561347,3.2234,155.04,155.03,0.04564602]
[1724490562615,3.2233,155.05,155.03,0.04564602]
[1724490562817,0.04617157,155.06,155.03,0.04564602]
[1724490563530,3.26937157,155.06,155.03,0.04564602]
[1724490564145,11.17937157,155.06,155.03,0.04564602]
[1724490564326,11.17937157,155.06,155.04,4.44293932]
[1724490564529,11.17937157,155.06,155.03,0.04564602]
[1724490565018,3.2232,155.05,155.03,0.04564602]
[1724490565226,11.1332,155.05,155.03,0.04564602]
[1724490565829,3.2232,155.05,155.03,0.04564602]
[1724490566323,3.2232,155.05,155.04,3.15378966]
[1724490566527,11.17917157,155.06,155.04,4.44314826]
[1724490566730,11.17917157,155.06,155.03,0.04564602]
[1724490566926,11.17917157,155.06,155.04,4.44282331]
[1724490567135,11.17917157,155.06,155.03,0.04564602]
[1724490567441,11.17917157,155.06,155.04,4.44263256]
[1724490567622,11.17917157,155.06,155.03,0.04564602]
[1724490567821,11.17917157,155.06,155.04,1.28935139]
[1724490568028,11.17917157,155.06,155.04,3.15328415]
[1724490568229,11.17917157,155.06,155.03,0.04564602]
[1724490568425,11.17917157,155.06,155.04,4.44294643]
[1724490568631,11.17917157,155.06,155.03,0.04564602]
[1724490568923,11.17917157,155.06,155.04,3.15358389]
[1724490569233,11.17917157,155.06,155.03,0.04564602]
[1724490569431,11.17917157,155.06,155.04,4.44318068]
[1724490569732,11.17917157,155.06,155.03,0.04564602]
[1724490569947,11.17917157,155.06,155.04,4.4431617]
[1724490570126,11.17917157,155.06,155.03,0.04564602]
[1724490570330,11.17917157,155.06,155.04,4.4431617]
[1724490570530,11.17917157,155.06,155.03,0.04564602]
[1724490570841,3.2232,155.05,155.04,4.44317528]
[1724490571531,3.2232,155.05,155.04,1.28938617]
[1724490571532,11.1332,155.05,155.04,1.28938617]
[1724490571736,3.2232,155.05,155.03,0.04564602]